[Event "Hungarian Championship Men 2022"]
[Site "Budapest"]
[Date "2022.12.09"]
[Round "5.2"]
[White "Korpa, Bence"]
[Black "Fodor, Tamas Jr."]
[Result "1/2-1/2"]
[ECO "C47"]
[WhiteElo "2500"]
[BlackElo "2517"]
[Annotator "TA"]
[PlyCount "58"]
[EventDate "2022.12.03"]
[EventType "tourn"]
[EventCountry "HUN"]
[SourceTitle "playchess.com"]
[Source "ChessBase"]
[SourceQuality "1"]
[TimeControl "40/5400+30:1800+30"]

{[%evp 22,58,12,10,0,0,2,17,23,14,31,21,21,29,33,27,20,0,0,0,0,0,0,0,0,0,0,0,0,0,14,0,0,0,0,0,0,0,5]} 1. e4 {[%emt 0:00:33]} e5 {[%emt 0:01:13]} 2. Nf3 {[%emt 0:00:13]} Nc6 {[%emt 0:00:20]} 3. Nc3 {[%emt 0:00:09]} Nf6 {[%emt 0:00:59]} 4. d4 {[%emt 0:00:13]} exd4 {[%emt 0:01:08]} 5. Nxd4 {[%emt 0:00:08]} Bb4 {[%emt 0:00:23]} 6. Nxc6 {[%emt 0:00:12]} bxc6 {[%emt 0:00:08]} 7. Bd3 {[%emt 0:00:13]} O-O {[%emt 0:00:27]} 8. O-O {[%emt 0:00:18]} d5 {[%emt 0:00:07]} 9. exd5 {[%emt 0:00:11]} cxd5 {[%emt 0:00:05]} 10. Bg5 {[%emt 0:00:26]} c6 {[%emt 0:00:57]} 11. Qf3 {[%emt 0:00:14]} Be7 {[%emt 0:05:19] 11...h6 is a critical line.} 12. Rfe1 {[%emt 0:07:06]} h6 {[%emt 0:02:15] C47: Scotch Four Knights and Four Knights with 4 g3.} 13. Bf4 {[%emt 0:01:35]} Re8 {[%emt 0:07:59]} 14. h3 {[%emt 0:01:23]} Qb6 {[%emt 0:04:16]} 15. Na4 {[%emt 0:16:51]} Qa5 {[%emt 0:06:07]} 16. b3 {[%emt 0:00:14]} Be6 {[%emt 0:14:20] [#]} 17. Re2 $146 {[%emt 0:04:08]} ({Predecessor:} 17. Rad1 Bf8 18. Re2 Ne4 19. Bxe4 dxe4 20. Qg3 Qh5 21. Rde1 Bd7 22. Rxe4 Rxe4 23. Rxe4 {1-0 (35) Khrinovskyi,O-Piliposyan,M (1935) Kramatorsk 2009}) 17... c5 {[%emt 0:03:33]} 18. Bd2 {[%emt 0:16:14] Against c4} Qc7 {[%emt 0:00:26]} 19. Bf5 {[%emt 0:00:30] The position is equal.} Bxf5 {[%emt 0:05:52]} 20. Qxf5 {[%emt 0:00:08]} Qc6 {[%emt 0:00:06]} 21. Rae1 {[%emt 0:06:27]} Bf8 {[%emt 0:01:40]} 22. Rxe8 {[%emt 0:03:32]} Rxe8 {[%emt 0:00:16]} 23. Rxe8 {[%emt 0:00:08]} Qxe8 {[%emt 0:00:40]} 24. Qd3 {[%emt 0:09:53] Inhibits Qe2.} Qe5 {[%emt 0:03:26]} 25. Nc3 {[%emt 0:15:24]} h5 {[%emt 0:02:00]} 26. Qe2 {[%emt 0:07:34]} Qf5 {[%emt 0:00:22] [#] aiming for ...d4.} 27. Qd3 {[%emt 0:00:59]} Qe5 {[%emt 0:00:20]} 28. Qe2 {[%emt 0:01:19]} Qf5 {[%emt 0:09:24] ...d4 is the strong threat.} 29. Qd3 {[%emt 0:00:12]} Qe5 {[%emt 0:00:04] An interesting draw.   Weighted Error Value: White=0.04 (flawless) /Black=0.01 (flawless)} 1/2-1/2

[Event "Hungarian Championship Men 2022"]
[Site "Budapest"]
[Date "2022.12.09"]
[Round "5.3"]
[White "Grigoriants, Sergey"]
[Black "Berkes, Ferenc"]
[Result "1/2-1/2"]
[ECO "D15"]
[WhiteElo "2550"]
[BlackElo "2643"]
[Annotator "TA"]
[PlyCount "51"]
[EventDate "2022.12.03"]
[EventType "tourn"]
[EventCountry "HUN"]
[SourceTitle "playchess.com"]
[Source "ChessBase"]
[SourceQuality "1"]
[TimeControl "40/5400+30:1800+30"]

{[%evp 9,51,29,37,20,20,14,20,27,13,24,26,9,10,18,18,14,10,10,14,21,21,4,64,13,13,12,25,6,10,10,18,8,9,0,3,0,0,0,0,0,0,0,0,0]} 1. d4 {[%emt 0:00:46]} d5 {[%emt 0:00:51]} 2. c4 {[%emt 0:00:37]} c6 {[%emt 0:00:20]} 3. Nf3 {[%emt 0:00:36]} Nf6 {[%emt 0:00:09]} 4. Nc3 {[%emt 0:00:42]} a6 {[%emt 0:00:54]} 5. e3 {[%emt 0:01:03]} Bf5 {[%emt 0:00:34]} 6. Ne5 {[%emt 0:04:16] D15: Slav Defence: 4 Nc3 a6 and gambit lines after 4 Nc3 dxc4.} Nbd7 {[%emt 0:00:53]} 7. Qb3 {[%emt 0:01:38][%csl LRb7,LRd5]} Qc7 {[%emt 0:00:39]} 8. cxd5 {[%emt 0:01:06]} Nxe5 {[%emt 0:00:26]} 9. dxe5 {[%emt 0:00:07]} Nxd5 {[%emt 0:00:08]} 10. Nxd5 {[%emt 0:08:08]} (10. Bc4 {seems wilder.} e6 11. e4 Nxc3 12. exf5 Nd5 13. Bxd5 Qxe5+ 14. Be3) 10... cxd5 {[%emt 0:00:41]} 11. Bd2 {[%emt 0:00:06]} Qxe5 {[%emt 0:01:49]} 12. Rc1 {[%emt 0:01:35]} Bd7 {[%emt 0:05:58]} 13. Bc3 {[%emt 0:03:25] Prevents e6.} Qc7 {[%emt 0:00:11]} 14. Qxd5 {[%emt 0:01:12]} Bc6 {[%emt 0:00:27]} 15. Qg5 {[%emt 0:02:17]} Qd6 {[%emt 0:06:42]} ({Better is} 15... h6 $11 16. Qg4 h5) 16. Bc4 {[%emt 0:05:10] White is more active.} (16. Bxg7 $2 {perishes.} Rg8 17. Qe5 (17. Rxc6 $2 Qxc6 18. Qg4 Rxg7 $19) 17... Bxg7 $19) ({White should play} 16. f3 $14) 16... Qg6 $11 {[%emt 0:00:11]} 17. Qxg6 {[%emt 0:00:36]} hxg6 {[%emt 0:00:07]} 18. f3 {[%emt 0:00:07]} e6 {[%emt 0:01:53] The position is equal.} 19. Kf2 {[%emt 0:01:54]} Rc8 {[%emt 0:00:30]} 20. h3 {[%emt 0:00:57]} Rh5 {[%emt 0:04:35]} 21. Bb3 {[%emt 0:01:26] [#]} Be7 $146 {[%emt 0:05:14]} ({Predecessor:} 21... Rc5 22. Bd4 Rxc1 23. Rxc1 Bd7 24. Rxc8+ Bxc8 25. Bc2 g5 26. f4 gxf4 27. exf4 f5 {½-½ (45) Giri,A (2777)-Andreikin,D (2728) Yasnaya Polyana 2021}) 22. Rhd1 {[%emt 0:03:19]} ({But not} 22. Bxg7 f6 23. Bxe6 Rd8 $17) 22... Bh4+ {[%emt 0:00:30]} 23. Kg1 {[%emt 0:00:22]} Bf6 {[%emt 0:00:17]} 24. Kf2 {[%emt 0:02:02]} Bh4+ {[%emt 0:00:12]} 25. Kg1 {[%emt 0:00:28]} Bf6 {[%emt 0:00:12]} 26. Kf2 {[%emt 0:00:20] An interesting draw.   Weighted Error Value: White=0.08 (flawless) /Black=0.05 (flawless)} 1/2-1/2

[Event "Hungarian Championship Men 2022"]
[Site "Budapest"]
[Date "2022.12.09"]
[Round "5.4"]
[White "Prohaszka, Peter"]
[Black "Nagy, Gabor"]
[Result "1/2-1/2"]
[ECO "D35"]
[WhiteElo "2562"]
[BlackElo "2482"]
[Annotator "TA"]
[PlyCount "61"]
[EventDate "2022.12.03"]
[EventType "tourn"]
[EventCountry "HUN"]
[SourceTitle "playchess.com"]
[Source "ChessBase"]
[SourceQuality "1"]
[TimeControl "40/5400+30:1800+30"]

{[%evp 15,61,7,26,6,6,20,21,13,16,15,14,20,18,20,16,9,11,14,31,20,23,13,12,13,8,12,9,20,75,0,0,0,0,0,0,0,0,0,0,0,0,0,0,0,0,0,0,0]} 1. d4 {[%emt 0:00:35]} d5 {[%emt 0:01:08]} 2. c4 {[%emt 0:00:05]} e6 {[%emt 0:00:18]} 3. Nc3 {[%emt 0:00:29]} Nf6 {[%emt 0:00:36]} 4. cxd5 {[%emt 0:00:19]} exd5 {[%emt 0:00:11]} 5. Bg5 {[%emt 0:01:40]} c6 {[%emt 0:00:37]} 6. e3 {[%emt 0:00:23]} h6 {[%emt 0:00:30]} 7. Bh4 {[%emt 0:02:17]} Be7 {[%emt 0:00:20]} 8. Bd3 {[%emt 0:01:11]} O-O {[%emt 0:00:17]} 9. Nge2 {[%emt 0:06:07] D35: Queen's Gambit Declined: Exchange Variation.} Ne4 {[%emt 0:00:53]} 10. Bxe7 {[%emt 0:13:55]} Qxe7 {[%emt 0:00:36]} 11. Qc2 {[%emt 0:02:49][%cal Rc3e4]} Bf5 {[%emt 0:01:58]} 12. O-O {[%emt 0:08:15]} Nxc3 {[%emt 0:11:07]} 13. bxc3 {[%emt 0:02:34]} Bxd3 {[%emt 0:00:32]} 14. Qxd3 {[%emt 0:00:03]} Nd7 {[%emt 0:00:53]} 15. Ng3 {[%emt 0:02:12] [#]} Qe6 $146 {[%emt 0:04:46]} ({Predecessor:} 15... b5 16. f3 Qa3 17. e4 b4 18. Rac1 Rfb8 19. Nf5 Kf8 20. e5 a5 21. Nd6 bxc3 22. Qf5 {1-0 (22) Gorovets,A (2493)-Tronenkovs,V (2265) Chess.com INT 2021}) 16. a4 {[%emt 0:08:46]} Rfc8 {[%emt 0:03:23]} 17. Rfe1 {[%emt 0:03:40]} c5 {[%emt 0:03:58]} 18. e4 {[%emt 0:03:10] aiming for exd5.} cxd4 {[%emt 0:05:00]} 19. cxd4 {[%emt 0:13:13] White wants to play exd5.} (19. exd5 {with more complications.} Qxd5 20. Nf5 Kh8 21. cxd4 Re8 22. Ne3) 19... dxe4 {[%emt 0:03:05]} 20. Rxe4 {[%emt 0:00:58]} Qd5 {[%emt 0:00:45] Strongly threatening ...Nc5.} 21. Rae1 {[%emt 0:04:27]} Rd8 {[%emt 0:03:52] [#]} (21... a6 $11 {keeps the balance.} 22. Re7 Nc5) 22. Re7 {[%emt 0:08:39]} ({Better is} 22. R4e3 $1 $16) 22... Nc5 $1 $11 {[%emt 0:02:32] The position is equal.} 23. Qf5 {[%emt 0:00:29]} (23. dxc5 $2 {too greedy.} Qxd3 24. Rxb7 Qc3 $19) 23... Qxf5 {[%emt 0:00:13]} 24. Nxf5 {[%emt 0:00:04]} Ne6 {[%emt 0:00:49]} 25. Rxb7 {[%emt 0:06:22]} Nxd4 {[%emt 0:00:10]} 26. Nxd4 {[%emt 0:00:13]} Rxd4 {[%emt 0:00:02] KRR-KRR} 27. a5 {[%emt 0:01:28]} Ra4 {[%emt 0:00:27]} 28. g3 {[%emt 0:04:56]} Rxa5 {[%emt 0:00:07]} 29. Ree7 {[%emt 0:00:06]} Rf5 {[%emt 0:00:22]} 30. Rxa7 {[%emt 0:00:06]} Rxa7 {[%emt 0:00:05]} 31. Rxa7 {[%emt 0:00:04] Weighted Error Value: White=0.07 (flawless) /Black=0.07 (flawless)} 1/2-1/2

[Event "Hungarian Championship Men 2022"]
[Site "Budapest"]
[Date "2022.12.09"]
[Round "5.5"]
[White "Horvath, Csaba"]
[Black "Horvath, Adam"]
[Result "1/2-1/2"]
[ECO "A46"]
[WhiteElo "2502"]
[BlackElo "2501"]
[Annotator "TA"]
[PlyCount "120"]
[EventDate "2022.12.03"]
[EventType "tourn"]
[EventCountry "HUN"]
[SourceTitle "playchess.com"]
[Source "ChessBase"]
[SourceQuality "1"]
[TimeControl "40/5400+30:1800+30"]

{[%evp 12,120,7,15,11,0,0,0,3,3,6,5,7,4,20,16,8,0,0,0,5,3,18,8,4,0,0,0,0,0,95,100,141,114,214,216,220,225,214,203,452,436,401,256,281,265,263,291,291,290,291,288,364,289,272,258,353,289,367,331,360,340,356,351,484,537,519,443,443,443,443,443,443,443,443,443,443,443,443,443,443,443,443,443,443,376,375,333,443,443,443,443,443,373,373,373,373,373,373,373,373,373,443,443,443,333,333,333,333,333,333]} 1. d4 {[%emt 0:00:33]} Nf6 {[%emt 0:09:19]} 2. Nf3 {[%emt 0:00:13]} e6 {[%emt 0:00:05]} 3. e3 {[%emt 0:00:16]} b6 {[%emt 0:00:25]} 4. Bd3 {[%emt 0:00:10]} Bb7 {[%emt 0:00:18]} 5. O-O {[%emt 0:00:16]} d5 {[%emt 0:00:06]} 6. b3 {[%emt 0:03:24]} Bd6 {[%emt 0:00:18]} 7. c4 {[%emt 0:01:04]} O-O {[%emt 0:00:12] E14: Queen's Indian: Classical Variation (4 e3).} 8. cxd5 {[%emt 0:02:39] is now debated instead of 8.Bb2.} exd5 {[%emt 0:00:05]} 9. Ba3 {[%emt 0:00:18]} Bxa3 {[%emt 0:08:08] The position is equal.} 10. Nxa3 {[%emt 0:00:03][%cal Bb1a3,Ba3b5,Bb5c3][%mdl 32]} Qe7 {[%emt 0:00:11]} 11. Nb5 {[%emt 0:00:26]} c5 {[%emt 0:00:30]} (11... c6 $5 12. Nc3 $8 Nbd7 $11) 12. Rc1 {[%emt 0:02:56]} Nc6 {[%emt 0:00:22]} 13. Re1 {[%emt 0:06:24] [#]} Rfd8 $146 {[%emt 0:07:25]} ({Predecessor:} 13... Rac8 14. Bf5 Rcd8 15. dxc5 bxc5 16. Nc3 g6 17. Bb1 Nb8 18. Qc2 Na6 19. Qb2 Rd6 {1-0 (41) Kovalenko,I (2626)-Meskovs,N (2510) Tallinn 2018}) 14. dxc5 {[%emt 0:14:07]} bxc5 {[%emt 0:00:08]} 15. Nc3 {[%emt 0:00:06]} Ne4 {[%emt 0:04:43]} 16. Bf1 {[%emt 0:08:18]} g6 {[%emt 0:13:14]} 17. Nd2 {[%emt 0:19:53][%cal Bf3d2,Bd2c4,Bc4d6][%mdl 32]} (17. Nxd5 Qe6 18. Bc4 Ne5 19. Nxe5 Qxe5 $17) 17... Ne5 {[%emt 0:26:50]} 18. Ncxe4 {[%emt 0:04:25]} dxe4 {[%emt 0:00:07]} 19. Qc2 {[%emt 0:00:12][%csl LRc5,LRe4]} Qg5 {[%emt 0:08:33][%cal Od8d2] ...Rxd2! is the strong threat.} 20. Red1 {[%emt 0:09:04]} Rd3 {[%emt 0:01:28]} 21. Nc4 $1 $16 {[%emt 0:05:53] aiming for f4. White stays focused until the end.} Nf3+ {[%emt 0:10:04]} 22. Kh1 {[%emt 0:00:02][%cal Og2f3]} Nh4 {[%emt 0:00:05]} (22... Ne5 $16) 23. Nd6 $18 {[%emt 0:04:36]} (23. Bxd3 $2 Qxg2#) (23. f4 $2 exf3 $1 24. Rxd3 (24. Bxd3 $2 fxg2+ 25. Kg1 Nf3+ 26. Kf2 Qh4+ 27. Ke2 Qxh2 $19) 24... fxg2+ 25. Bxg2 Bxg2+ 26. Kg1 Be4+ 27. Kf1 Re8 $19) 23... Bc6 {[%emt 0:00:27][%cal Oa8d8]} 24. Qc4 {[%emt 0:01:05]} (24. Bxd3 $2 Qxg2#) 24... Bd5 {[%emt 0:02:24]} 25. Qxc5 {[%emt 0:05:50]} Rd8 $2 {[%emt 0:00:51]} (25... h6 {keeps fighting.} 26. Nb5 (26. Bxd3 $2 Qxg2#) 26... Rd8) 26. Nxe4 {[%emt 0:04:31]} (26. Bxd3 $2 Qxg2#) 26... Rxd1 {[%emt 0:05:53]} 27. Rxd1 {[%emt 0:03:25][%mdl 64] Really sharp!} Bxe4 {[%emt 0:00:04]} 28. Qxg5 {[%emt 0:00:07]} Rxd1 {[%emt 0:00:38][%cal Rd1f1]} 29. Kg1 {[%emt 0:00:31]} Bxg2 {[%emt 0:01:33][%csl Gg2][%cal Rd1f1]} 30. Qxh4 {[%emt 0:00:14]} Bxf1 {[%emt 0:00:02][%cal Rf1h3][%mdl 4096] Endgame KQ-KRB} 31. h3 {[%emt 0:02:17]} Bxh3+ {[%emt 0:00:49]} 32. Kh2 {[%emt 0:00:02]} Be6 {[%emt 0:00:12]} 33. Qe7 {[%emt 0:00:53]} a5 {[%emt 0:00:56]} 34. Qa7 {[%emt 0:00:35]} Rd5 {[%emt 0:00:28]} 35. e4 {[%emt 0:00:44]} Rh5+ {[%emt 0:00:08]} 36. Kg3 {[%emt 0:00:21]} Rg5+ {[%emt 0:00:17]} 37. Kf4 {[%emt 0:00:20]} Rg4+ {[%emt 0:00:11]} 38. Ke5 {[%emt 0:02:24]} h5 {[%emt 0:00:06]} 39. f4 {[%emt 0:00:34]} (39. Qxa5 $2 Rg5+ 40. Kf4 Rxa5 $19) 39... h4 {[%emt 0:00:03]} 40. Qe3 {[%emt 0:00:00] Against h3} (40. Qxa5 h3 41. Qd2 Rg2 42. Qd8+ Kg7 43. Qf6+ Kg8 $18) 40... h3 {[%emt 0:00:00] Hoping for ...h2.} 41. f5 {[%emt 0:04:00]} (41. Qxh3 Rxf4 42. Qh2 g5 $18) 41... h2 {[%emt 0:05:26] [#]} 42. Qh6 $1 {[%emt 0:05:37] Inhibits f6+. Intending f6 and mate.} (42. fxe6 $2 {is the wrong capture.} h1=Q 43. exf7+ Kxf7 44. Qa7+ Kg8 45. Qb8+ Kh7 46. Qa7+ Kg8 47. Qb8+ Kg7 48. Qa7+ Kh6 $19) 42... gxf5 {[%emt 0:00:27]} 43. exf5 {[%emt 0:00:17]} Rg1 {[%emt 0:01:51]} 44. Qxh2 {[%emt 0:01:10]} (44. fxe6 $2 h1=Q 45. exf7+ Kxf7 46. Qe6+ Kg7 47. Qf6+ Kh7 $19) 44... Rg5 {[%emt 0:00:03]} 45. Kd6 {[%emt 0:01:36]} Rxf5 {[%emt 0:02:31]} 46. Qg3+ {[%emt 0:01:08]} Kf8 {[%emt 0:00:25]} 47. Kc6 {[%emt 0:00:23]} Bd5+ {[%emt 0:02:16]} 48. Kb6 {[%emt 0:00:27]} Be6 {[%emt 0:00:17]} 49. Qc3 {[%emt 0:00:27]} Kg8 {[%emt 0:00:32]} 50. a4 {[%emt 0:01:34][%cal Ba2a4,Ba4a5][%mdl 32]} Rh5 {[%emt 0:01:29]} 51. b4 {[%emt 0:01:52]} Rh3 {[%emt 0:01:15] Against b5} 52. Qb2 {[%emt 0:06:41]} axb4 {[%emt 0:00:04]} 53. a5 $1 {[%emt 0:00:52]} (53. Qxb4 Rb3 $19) 53... b3 {[%emt 0:11:01]} 54. a6 {[%emt 0:00:26]} Bd5 {[%emt 0:01:28] Against Qg2+} 55. a7 {[%emt 0:00:32]} Rh6+ {[%emt 0:00:20]} 56. Kc5 {[%emt 0:00:37]} Ra6 {[%emt 0:07:44]} 57. Kxd5 {[%emt 0:00:13]} Rxa7 {[%emt 0:00:03]} 58. Qxb3 {[%emt 0:01:13] Threatening mate with Qb8+.} Ra6 {[%emt 0:00:10] White has a decisive advantage.} 59. Ke5 {[%emt 0:00:27]} ({Weaker is} 59. Qb8+ Kg7 $11) 59... Re6+ {[%emt 0:00:10]} 60. Kf5 {[%emt 0:00:10]} Rg6 {[%emt 0:00:13][%mdl 32768] Weighted Error Value: White=0.13 (very precise) /Black=0.22 (precise) . An unexpected result.} 1/2-1/2

[Event "Hungarian Championship Men 2022"]
[Site "Budapest"]
[Date "2022.12.10"]
[Round "6.1"]
[White "Kozak, Adam"]
[Black "Horvath, Adam"]
[Result "1-0"]
[ECO "B48"]
[WhiteElo "2538"]
[BlackElo "2501"]
[Annotator "TA"]
[PlyCount "83"]
[EventDate "2022.12.03"]
[EventType "tourn"]
[EventCountry "HUN"]
[SourceTitle "playchess.com"]
[Source "ChessBase"]
[SourceQuality "1"]
[TimeControl "40/5400+30:1800+30"]

{[%evp 14,83,37,23,23,18,25,28,39,34,37,28,39,19,18,17,27,20,8,22,18,18,96,88,104,99,177,166,157,177,272,258,243,243,353,334,332,331,455,147,131,140,152,163,143,133,158,155,172,208,312,204,396,393,385,381,385,385,378,249,279,261,260,261,328,291,344,343,581,571,534,477]} 1. e4 {[%emt 0:00:34]} c5 {[%emt 0:00:44]} 2. Nf3 {[%emt 0:00:09]} e6 {[%emt 0:00:13]} 3. d4 {[%emt 0:00:11]} cxd4 {[%emt 0:00:06]} 4. Nxd4 {[%emt 0:00:06]} Nc6 {[%emt 0:00:04]} 5. Nc3 {[%emt 0:00:24]} Qc7 {[%emt 0:00:05]} 6. Be3 {[%emt 0:01:05]} a6 {[%emt 0:00:06]} 7. a3 {[%emt 0:00:21] 7.g4 is setting a new trend.} b5 {[%emt 0:00:15]} 8. Nxc6 {[%emt 0:00:12]} dxc6 {[%emt 0:00:05] B48: Sicilian: Taimanov: 5 Nc3 Qc7 6 Be3 a6 without Be2.} 9. Qg4 {[%emt 0:00:32]} e5 {[%emt 0:00:15]} 10. Qg3 {[%emt 0:00:11]} h5 {[%emt 0:00:05] White has an edge.} 11. Bd4 {[%emt 0:00:11]} f6 {[%emt 0:00:11]} 12. Be3 {[%emt 0:00:04]} Kf7 {[%emt 0:01:01]} 13. h3 {[%emt 0:05:45]} Be6 {[%emt 0:19:14]} 14. Be2 $36 {[%emt 0:00:05][%mdl 2048] White has the initiative.} Bd6 {[%emt 0:04:48] Inhibits f4.} 15. a4 {[%emt 0:00:28][%cal Ra4b5]} h4 {[%emt 0:05:59]} 16. Qf3 {[%emt 0:00:06][%cal Ra4b5]} Ne7 {[%emt 0:00:13]} 17. O-O {[%emt 0:00:07] [#]} b4 $146 {[%emt 0:13:21]} (17... Ng6 $11) ({Predecessor:} 17... Ng6 18. Rfd1 Qe7 19. Na2 Nf4 20. Bxf4 exf4 21. Nc1 g6 22. axb5 cxb5 23. Bxb5 axb5 24. Rxa8 Rxa8 {½-½ (50) Pavlov,V (2425)-Quinones Borda,J (2421) ICCF email 2019}) 18. Nb1 $1 $16 {[%emt 0:01:14][%cal Bc3b1,Bb1d2,Bd2c4,Bc4e5][%mdl 32]} c5 {[%emt 0:00:04]} 19. Nd2 {[%emt 0:04:01]} c4 {[%emt 0:05:43]} (19... Nc6 $16) 20. b3 $1 $18 {[%emt 0:20:21]} c3 {[%emt 0:01:31]} 21. Nc4 {[%emt 0:00:08]} Bc5 {[%emt 0:07:14] [#]} (21... Nc6 $142 22. Rad1 Nd4 23. Nxe5+ (23. Bxd4 exd4 24. Rxd4 Bc5 $16) 23... Bxe5 24. Bxd4 a5 25. Bxe5 Qxe5) 22. Nxe5+ $1 {[%emt 0:06:48][%mdl 512]} Qxe5 {[%emt 0:00:19] [#]} 23. Bf4 $1 {[%emt 0:00:06]} Qd4 {[%emt 0:26:58]} (23... Bxf2+ $142 24. Qxf2 Qa5) 24. Rad1 {[%emt 0:04:39]} Nc6 {[%emt 0:00:22][%cal Oc6e5] aiming for ...Ne5!} 25. e5 {[%emt 0:01:14]} (25. Rxd4 Nxd4 26. Qd3 Rhd8 $18) 25... Rad8 {[%emt 0:02:45]} 26. Qxc6 {[%emt 0:09:56]} (26. Rxd4 $18 {and the rest is easy.} Nxd4 27. Qb7+ Rd7 28. Qxa6) 26... Qxf4 $16 {[%emt 0:00:11]} 27. Qxc5 {[%emt 0:01:14] Really sharp!} Qxe5 {[%emt 0:00:28] [#]} 28. Qa7+ {[%emt 0:02:14]} (28. Qxb4 $2 Qxe2 29. Rde1 Qd2 30. Qb7+ Rd7 31. Qxa6 Rd6 32. Qb7+ Kg6 $19) (28. Bh5+ Rxh5 29. Qxe5 (29. Qxb4 $2 Rxd1 30. Rxd1 Rg5 $19) 29... Rxe5 $17) 28... Kg6 {[%emt 0:00:10]} 29. Bd3+ {[%emt 0:05:17]} (29. Bxa6 $6 Bf5 $11) 29... Bf5 {[%emt 0:04:23] And now ...Bxd3 would win.} 30. Qxa6 {[%emt 0:01:06]} (30. Bxa6 Bxc2 31. Rde1 Qd4 $17) 30... Rhe8 {[%emt 0:05:28]} 31. Qc4 {[%emt 0:01:11][%csl LRb4,LRh4] Strongly threatening Qg4+.} Rxd3 {[%emt 0:00:27]} (31... Bxd3 {was called for.} 32. Rxd3 Rxd3 33. Qxd3+ Qf5) 32. Rxd3 {[%emt 0:23:06]} Qe2 {[%emt 0:00:34] Inhibits Re3.} (32... Bxd3 33. Qxd3+ Qf5 34. Qxf5+ Kxf5) 33. Rd4 $18 {[%emt 0:01:47]} Qxc2 {[%emt 0:01:31]} 34. Qxb4 {[%emt 0:01:28]} ({Don't play} 34. Rxh4 Qd3 35. Rg4+ (35. Qxb4 c2 $11) 35... Kh6 36. Rh4+ Kg6 37. Rg4+ (37. Qxb4 c2 $11) 37... Kh7 38. Qxd3 Bxd3 $18) 34... Qb2 {[%emt 0:01:56]} 35. Rxh4 {[%emt 0:01:56]} c2 {[%emt 0:00:08]} 36. Qd2 {[%emt 0:00:43] Against c1R. Black must now prevent b4.} Qxb3 {[%emt 0:00:27]} 37. Rd4 {[%emt 0:08:20] Against Qd3} Kh7 {[%emt 0:00:54]} 38. Rc1 {[%emt 0:01:14]} Qb2 {[%emt 0:00:34]} 39. Rh4+ {[%emt 0:00:48]} Kg6 {[%emt 0:00:27][%cal Oe8d8]} 40. Rc4 {[%emt 0:00:00]} Re2 $2 {[%emt 0:00:00]} (40... Kh7 41. a5 Re5) 41. Qxe2 {[%emt 0:03:51]} Qxc1+ {[%emt 0:00:43]} 42. Kh2 {[%emt 0:00:09] Weighted Error Value: White=0.20 (precise) /Black=0.45} 1-0

[Event "Hungarian Championship Men 2022"]
[Site "Budapest"]
[Date "2022.12.10"]
[Round "6.2"]
[White "Nagy, Gabor"]
[Black "Horvath, Csaba"]
[Result "1/2-1/2"]
[ECO "E15"]
[WhiteElo "2482"]
[BlackElo "2502"]
[Annotator "TA"]
[PlyCount "60"]
[EventDate "2022.12.03"]
[EventType "tourn"]
[EventCountry "HUN"]
[SourceTitle "playchess.com"]
[Source "ChessBase"]
[SourceQuality "1"]
[TimeControl "40/5400+30:1800+30"]

{[%evp 17,60,0,9,0,0,-28,-20,-21,-14,-14,0,-16,0,-12,-4,-11,-13,-10,-11,-61,-15,-16,0,0,0,0,0,0,0,-12,0,0,0,0,0,0,0,0,0,0,0,0,0,0,0]} 1. d4 {[%emt 0:00:37]} Nf6 {[%emt 0:01:20]} 2. c4 {[%emt 0:00:16]} e6 {[%emt 0:00:16]} 3. Nf3 {[%emt 0:00:41]} b6 {[%emt 0:02:59]} 4. g3 {[%emt 0:00:37]} c6 {[%emt 0:02:48]} 5. Bg2 {[%emt 0:01:00]} Be7 {[%emt 0:00:23]} 6. Nc3 {[%emt 0:00:53]} d5 {[%emt 0:00:19]} 7. Ne5 {[%emt 0:01:48]} Bb7 {[%emt 0:00:34]} 8. O-O {[%emt 0:00:44]} Nfd7 {[%emt 0:04:06]} 9. Bf4 {[%emt 0:07:33]} O-O {[%emt 0:03:30]} 10. cxd5 {[%emt 0:01:02] E16: Queen's Indian: 4 g3 Bb7 5 Bg2 Bb4+.} cxd5 {[%emt 0:01:14]} 11. e4 {[%emt 0:03:10][%cal Re4d5]} Nxe5 {[%emt 0:07:03]} 12. Bxe5 {[%emt 0:04:39]} dxe4 {[%emt 0:00:24]} 13. Nxe4 {[%emt 0:10:48] [#] aiming for Qg4.} Bd5 {[%emt 0:15:12]} 14. Qg4 {[%emt 0:03:59][%csl Ge5][%cal Rg4g7]} g6 {[%emt 0:06:00] Threatens to win with ...f5.} (14... f6 {simplifies} 15. Bxb8 Rxb8 16. Nc3 Bc4) 15. Qf4 {[%emt 0:07:41]} f6 {[%emt 0:02:04] [#]} 16. Bxb8 $146 {[%emt 0:00:42]} ({Predecessor:} 16. Bc7 Qd7 17. Bxb8 Raxb8 18. Nc3 Bxg2 19. Kxg2 b5 20. Qe3 f5 21. d5 {0-1 (48) Kovacevic,B (2295)-Djuric,S (2460) Formia 1995}) 16... Qxb8 {[%emt 0:00:45]} 17. Qe3 {[%emt 0:03:19]} Qb7 {[%emt 0:00:36] [#] ...f5 is the strong threat.} 18. f3 {[%emt 0:01:26]} ({Better is} 18. Bf3 $11) 18... e5 {[%emt 0:08:58]} (18... f5 $15 19. Nc3 Rad8) 19. dxe5 $11 {[%emt 0:01:52] The position is equal.} Bxe4 {[%emt 0:01:06]} 20. Qxe4 {[%emt 0:00:10]} Qxe4 {[%emt 0:00:09]} 21. fxe4 {[%emt 0:00:04]} Bc5+ {[%emt 0:01:08]} 22. Kh1 {[%emt 0:00:09]} fxe5 {[%emt 0:00:06]} 23. b3 {[%emt 0:07:20]} Rxf1+ {[%emt 0:10:26]} 24. Bxf1 {[%emt 0:00:10][%mdl 4096] Endgame KRB-KRB} Rf8 {[%emt 0:00:30]} 25. Bc4+ {[%emt 0:00:06]} Kg7 {[%emt 0:00:08]} 26. Rf1 {[%emt 0:00:07]} Rxf1+ {[%emt 0:00:13]} 27. Bxf1 {[%emt 0:00:02]} Kf6 {[%emt 0:00:16]} 28. Kg2 {[%emt 0:00:07]} Bd4 {[%emt 0:00:39]} 29. Bc4 {[%emt 0:00:08]} Bc5 {[%emt 0:00:08]} 30. Kf3 {[%emt 0:00:05]} Bd4 {[%emt 0:00:13] A balanced but interesting game.   Weighted Error Value: White=0.10 (very precise) /Black=0.07 (flawless)} 1/2-1/2